[Event "Titled Tuesday Blitz December 27 Early 2022"]
[White "Graca, Robert"]
[Black "Rohith Krishna S"]
[WhiteFideId "644943"]
[BlackFideId "46617051"]
[WhiteElo "2270"]
[BlackElo "2385"]
[Result "1-0"]
[Round "06"]
[TimeControl "180+2"]
[Date "2022.12.27"]
[WhiteClock "0:01:42"]
[BlackClock "0:01:45"]

1. Nf3 {[%clk 0:02:59]}  Nc6 {[%clk 0:02:58]} 2. d4 {[%clk 0:02:53]}  d5 {[%clk 0:02:59]} 3. c4 {[%clk 0:02:54]}  Bg4 {[%clk 0:02:58]} 4. Nc3 {[%clk 0:02:54]}  dxc4 {[%clk 0:02:58]} 5. d5 {[%clk 0:02:55]}  Bxf3 {[%clk 0:02:53]} 6. exf3 {[%clk 0:02:56]}  Ne5 {[%clk 0:02:52]} 7. Bf4 {[%clk 0:02:57]}  Ng6 {[%clk 0:02:52]} 8. Bxc4 {[%clk 0:02:57]}  Nxf4 {[%clk 0:02:52]} 9. Bb5+ {[%clk 0:02:53]}  c6 {[%clk 0:02:52]} 10. dxc6 {[%clk 0:02:54]}  a6 {[%clk 0:01:59]} 11. c7+ {[%clk 0:02:19]}  axb5 {[%clk 0:01:58]} 12. cxd8=Q+ {[%clk 0:02:19]}  Rxd8 {[%clk 0:01:59]} 13. Qb3 {[%clk 0:02:12]}  b4 {[%clk 0:01:46]} 14. Qa4+ {[%clk 0:01:58]}  Rd7 {[%clk 0:01:45]} 15. Rd1 {[%clk 0:01:53]}  Nf6 {[%clk 0:01:45]} 16. Qa8+ {[%clk 0:01:42]} 1-0


[Site "https://www.chess.com"]

[Event "Titled Tuesday Blitz December 27 Early 2022"]
[White "Gurevich, Dmitry"]
[Black "Golizadeh, Asghar"]
[WhiteFideId "2000407"]
[BlackFideId "12505269"]
[WhiteElo "2393"]
[BlackElo "2455"]
[Result "0-1"]
[Round "06"]
[TimeControl "180+2"]
[Date "2022.12.27"]
[WhiteClock "0:00:45"]
[BlackClock "0:00:14"]

1. d4 {[%clk 0:03:00]}  Nf6 {[%clk 0:02:52]} 2. c4 {[%clk 0:03:00]}  c5 {[%clk 0:02:51]} 3. Nf3 {[%clk 0:03:00]}  cxd4 {[%clk 0:02:51]} 4. Nxd4 {[%clk 0:03:00]}  e6 {[%clk 0:02:51]} 5. Nc3 {[%clk 0:02:58]}  Bb4 {[%clk 0:02:50]} 6. g3 {[%clk 0:02:56]}  O-O {[%clk 0:02:46]} 7. Bg2 {[%clk 0:02:56]}  d5 {[%clk 0:02:45]} 8. cxd5 {[%clk 0:02:43]}  Nxd5 {[%clk 0:02:44]} 9. Bd2 {[%clk 0:02:44]}  Nxc3 {[%clk 0:02:23]} 10. bxc3 {[%clk 0:02:43]}  Be7 {[%clk 0:02:24]} 11. O-O {[%clk 0:02:42]}  e5 {[%clk 0:02:21]} 12. Nb3 {[%clk 0:02:34]}  Nc6 {[%clk 0:02:18]} 13. Be3 {[%clk 0:02:32]}  Qc7 {[%clk 0:02:16]} 14. Rb1 {[%clk 0:02:22]}  Bf5 {[%clk 0:02:14]} 15. Rb2 {[%clk 0:02:21]}  Rad8 {[%clk 0:02:09]} 16. Rd2 {[%clk 0:02:20]}  Rxd2 {[%clk 0:02:08]} 17. Qxd2 {[%clk 0:02:21]}  Rd8 {[%clk 0:02:09]} 18. Qc1 {[%clk 0:02:21]}  b6 {[%clk 0:02:07]} 19. Rd1 {[%clk 0:02:14]}  Rc8 {[%clk 0:01:41]} 20. h3 {[%clk 0:02:08]}  a5 {[%clk 0:01:36]} 21. Nd2 {[%clk 0:02:01]}  Nd4 {[%clk 0:01:25]} 22. Bxd4 {[%clk 0:01:52]}  exd4 {[%clk 0:01:24]} 23. c4 {[%clk 0:01:50]}  Bc5 {[%clk 0:00:57]} 24. Ne4 {[%clk 0:01:41]}  Bxe4 {[%clk 0:00:52]} 25. Bxe4 {[%clk 0:01:40]}  Re8 {[%clk 0:00:53]} 26. Bf3 {[%clk 0:01:24]}  d3 {[%clk 0:00:48]} 27. e3 {[%clk 0:01:24]}  Rxe3 {[%clk 0:00:32]} 28. Kg2 {[%clk 0:00:55]}  Rxf3 {[%clk 0:00:20]} 29. Kxf3 {[%clk 0:00:54]}  Qc6+ {[%clk 0:00:20]} 30. Kf4 {[%clk 0:00:53]}  Qf6+ {[%clk 0:00:18]} 31. Ke4 {[%clk 0:00:52]}  Qd4+ {[%clk 0:00:18]} 32. Kf3 {[%clk 0:00:49]}  Qxf2+ {[%clk 0:00:17]} 33. Ke4 {[%clk 0:00:49]}  Qe2+ {[%clk 0:00:16]} 34. Kf4 {[%clk 0:00:45]}  Bd6+ {[%clk 0:00:14]} 0-1


[Site "https://www.chess.com"]

[Event "Titled Tuesday Blitz December 27 Early 2022"]
[White "Hardaway, Brewington"]
[Black "Ronka, Erik"]
[WhiteFideId "30941849"]
[BlackFideId "505080"]
[WhiteElo "2363"]
[BlackElo "2276"]
[Result "0-1"]
[Round "06"]
[TimeControl "180+2"]
[Date "2022.12.27"]
[WhiteClock "0:00:08"]
[BlackClock "0:00:12"]

1. Nf3 {[%clk 0:03:00]}  f5 {[%clk 0:03:00]} 2. d4 {[%clk 0:02:59]}  e6 {[%clk 0:02:59]} 3. c4 {[%clk 0:02:59]}  Nf6 {[%clk 0:02:58]} 4. Nc3 {[%clk 0:02:59]}  Bb4 {[%clk 0:02:58]} 5. g3 {[%clk 0:02:59]}  Bxc3+ {[%clk 0:02:56]} 6. bxc3 {[%clk 0:02:59]}  b6 {[%clk 0:02:57]} 7. Bg2 {[%clk 0:03:00]}  Bb7 {[%clk 0:02:58]} 8. O-O {[%clk 0:02:59]}  O-O {[%clk 0:02:58]} 9. a4 {[%clk 0:02:58]}  Ne4 {[%clk 0:02:44]} 10. Qc2 {[%clk 0:02:57]}  Nc6 {[%clk 0:02:43]} 11. Nd2 {[%clk 0:02:32]}  d5 {[%clk 0:02:27]} 12. cxd5 {[%clk 0:02:24]}  exd5 {[%clk 0:02:27]} 13. e3 {[%clk 0:02:24]}  Ba6 {[%clk 0:02:22]} 14. Re1 {[%clk 0:02:22]}  Na5 {[%clk 0:02:20]} 15. Ba3 {[%clk 0:02:11]}  Re8 {[%clk 0:02:19]} 16. Nf3 {[%clk 0:02:09]}  Nc4 {[%clk 0:02:18]} 17. Bf1 {[%clk 0:01:53]}  Bb7 {[%clk 0:01:27]} 18. Bc1 {[%clk 0:01:43]}  g5 {[%clk 0:01:17]} 19. Bxc4 {[%clk 0:01:36]}  dxc4 {[%clk 0:01:18]} 20. Ne5 {[%clk 0:01:37]}  Rxe5 {[%clk 0:01:06]} 21. dxe5 {[%clk 0:01:22]}  g4 {[%clk 0:01:06]} 22. Ba3 {[%clk 0:00:36]}  Qd5 {[%clk 0:00:56]} 23. Red1 {[%clk 0:00:28]}  Qc6 {[%clk 0:00:49]} 24. Rd4 {[%clk 0:00:18]}  Nd2 {[%clk 0:00:39]} 25. e4 {[%clk 0:00:14]}  Nxe4 {[%clk 0:00:32]} 26. Qe2 {[%clk 0:00:10]}  Nd2 {[%clk 0:00:27]} 27. f3 {[%clk 0:00:04]}  Nxf3+ {[%clk 0:00:27]} 28. Kf2 {[%clk 0:00:05]}  Nxd4 {[%clk 0:00:24]} 29. cxd4 {[%clk 0:00:06]}  Rd8 {[%clk 0:00:19]} 30. Qd2 {[%clk 0:00:01]}  Qf3+ {[%clk 0:00:18]} 31. Kg1 {[%clk 0:00:01]}  h6 {[%clk 0:00:16]} 32. Rf1 {[%clk 0:00:01]}  Qh1+ {[%clk 0:00:16]} 33. Kf2 {[%clk 0:00:02]}  Qxh2+ {[%clk 0:00:16]} 34. Ke1 {[%clk 0:00:02]}  Qxg3+ {[%clk 0:00:15]} 35. Kd1 {[%clk 0:00:02]}  Qxa3 {[%clk 0:00:15]} 36. Qxh6 {[%clk 0:00:01]}  Qd3+ {[%clk 0:00:15]} 37. Ke1 {[%clk 0:00:01]}  Qe4+ {[%clk 0:00:15]} 38. Kf2 {[%clk 0:00:02]}  Qxd4+ {[%clk 0:00:15]} 39. Kg3 {[%clk 0:00:03]}  Qd3+ {[%clk 0:00:14]} 40. Kh4 {[%clk 0:00:02]}  Qh3+ {[%clk 0:00:14]} 41. Kg5 {[%clk 0:00:03]}  Qxh6+ {[%clk 0:00:13]} 42. Kxh6 {[%clk 0:00:04]}  Be4 {[%clk 0:00:14]} 43. e6 {[%clk 0:00:03]}  Kf8 {[%clk 0:00:14]} 44. Rc1 {[%clk 0:00:03]}  Ke7 {[%clk 0:00:14]} 45. Rxc4 {[%clk 0:00:03]}  c5 {[%clk 0:00:14]} 46. a5 {[%clk 0:00:03]}  Kxe6 {[%clk 0:00:14]} 47. axb6 {[%clk 0:00:04]}  axb6 {[%clk 0:00:14]} 48. Ra4 {[%clk 0:00:05]}  Ke5 {[%clk 0:00:15]} 49. Ra7 {[%clk 0:00:05]}  b5 {[%clk 0:00:14]} 50. Re7+ {[%clk 0:00:06]}  Kd4 {[%clk 0:00:15]} 51. Kg5 {[%clk 0:00:06]}  b4 {[%clk 0:00:14]} 52. Kf4 {[%clk 0:00:07]}  Kc3 {[%clk 0:00:15]} 53. Re5 {[%clk 0:00:07]}  c4 {[%clk 0:00:15]} 54. Ra5 {[%clk 0:00:07]}  b3 {[%clk 0:00:15]} 55. Ra1 {[%clk 0:00:08]}  b2 {[%clk 0:00:15]} 56. Re1 {[%clk 0:00:09]}  b1=Q {[%clk 0:00:15]} 57. Re3+ {[%clk 0:00:10]}  Kb4 {[%clk 0:00:14]} 58. Kg5 {[%clk 0:00:09]}  c3 {[%clk 0:00:14]} 59. Rg3 {[%clk 0:00:08]}  c2 {[%clk 0:00:13]} 60. Kg6 {[%clk 0:00:09]}  c1=Q {[%clk 0:00:12]} 61. Rxg4 {[%clk 0:00:06]}  fxg4+ {[%clk 0:00:12]} 62. Kf6 {[%clk 0:00:06]}  Qc6+ {[%clk 0:00:12]} 63. Ke5 {[%clk 0:00:07]}  Qd5+ {[%clk 0:00:12]} 64. Kf6 {[%clk 0:00:07]}  Qf5+ {[%clk 0:00:12]} 65. Kg7 {[%clk 0:00:08]}  Qb2+ {[%clk 0:00:12]} 66. Kh6 {[%clk 0:00:08]}  Qh8# {[%clk 0:00:12]} 0-1


[Site "https://www.chess.com"]

[Event "Titled Tuesday Blitz December 27 Early 2022"]
[White "Hsu, Li Yang"]
[Black "Jimenez Almeida, Luis David"]
[WhiteFideId "5800080"]
[BlackFideId "22242244"]
[WhiteElo "2427"]
[BlackElo "2242"]
[Result "1-0"]
[Round "06"]
[TimeControl "180+2"]
[Date "2022.12.27"]
[WhiteClock "0:00:08"]
[BlackClock "0:00:11"]

1. Nf3 {[%clk 0:03:00]}  g6 {[%clk 0:02:58]} 2. e4 {[%clk 0:02:59]}  Bg7 {[%clk 0:02:56]} 3. d4 {[%clk 0:02:58]}  c5 {[%clk 0:02:56]} 4. c3 {[%clk 0:02:53]}  cxd4 {[%clk 0:02:53]} 5. cxd4 {[%clk 0:02:53]}  d5 {[%clk 0:02:53]} 6. e5 {[%clk 0:02:53]}  Nc6 {[%clk 0:02:53]} 7. h3 {[%clk 0:02:44]}  Nh6 {[%clk 0:02:51]} 8. Nc3 {[%clk 0:02:17]}  O-O {[%clk 0:02:47]} 9. Bb5 {[%clk 0:02:07]}  f6 {[%clk 0:02:45]} 10. O-O {[%clk 0:02:02]}  Nf7 {[%clk 0:02:43]} 11. exf6 {[%clk 0:01:54]}  Bxf6 {[%clk 0:02:37]} 12. Re1 {[%clk 0:01:52]}  Qd6 {[%clk 0:02:27]} 13. Be3 {[%clk 0:01:37]}  Bf5 {[%clk 0:02:23]} 14. Qd2 {[%clk 0:01:35]}  Nb4 {[%clk 0:02:17]} 15. Bf4 {[%clk 0:01:32]}  Qb6 {[%clk 0:00:48]} 16. Ba4 {[%clk 0:01:24]}  Rfd8 {[%clk 0:00:44]} 17. Ne5 {[%clk 0:01:14]}  Bxe5 {[%clk 0:00:39]} 18. Bxe5 {[%clk 0:01:15]}  Nd3 {[%clk 0:00:39]} 19. Bb3 {[%clk 0:00:54]}  Nxe1 {[%clk 0:00:35]} 20. Rxe1 {[%clk 0:00:34]}  Qc6 {[%clk 0:00:28]} 21. g4 {[%clk 0:00:30]}  Nxe5 {[%clk 0:00:27]} 22. Rxe5 {[%clk 0:00:28]}  Be6 {[%clk 0:00:26]} 23. Qe3 {[%clk 0:00:26]}  Rd6 {[%clk 0:00:27]} 24. f4 {[%clk 0:00:12]}  Rad8 {[%clk 0:00:26]} 25. f5 {[%clk 0:00:12]}  gxf5 {[%clk 0:00:25]} 26. gxf5 {[%clk 0:00:13]}  Bf7 {[%clk 0:00:25]} 27. Rxe7 {[%clk 0:00:13]}  Rf6 {[%clk 0:00:22]} 28. Qe5 {[%clk 0:00:12]}  Kh8 {[%clk 0:00:22]} 29. Rc7 {[%clk 0:00:11]}  Rg8+ {[%clk 0:00:21]} 30. Kh2 {[%clk 0:00:10]}  Re8 {[%clk 0:00:14]} 31. Rxc6 {[%clk 0:00:09]}  Rxe5 {[%clk 0:00:11]} 32. Rxf6 {[%clk 0:00:09]}  Re2+ {[%clk 0:00:11]} 33. Kg3 {[%clk 0:00:08]} 1-0


[Site "https://www.chess.com"]

[Event "Titled Tuesday Blitz December 27 Early 2022"]
[White "Itgelt, Khuyagtsogt"]
[Black "Jimenez, Joaquin"]
[WhiteFideId "4902912"]
[BlackFideId "109860"]
[WhiteElo "2261"]
[BlackElo "2195"]
[Result "1-0"]
[Round "06"]
[TimeControl "180+2"]
[Date "2022.12.27"]
[WhiteClock "0:01:08"]
[BlackClock "0:01:16"]

1. d4 {[%clk 0:03:00]}  Nf6 {[%clk 0:03:00]} 2. Nf3 {[%clk 0:03:01]}  g6 {[%clk 0:03:00]} 3. g3 {[%clk 0:03:01]}  Bg7 {[%clk 0:03:00]} 4. Bg2 {[%clk 0:03:02]}  O-O {[%clk 0:03:01]} 5. O-O {[%clk 0:03:03]}  d6 {[%clk 0:03:01]} 6. c4 {[%clk 0:03:04]}  Nc6 {[%clk 0:03:00]} 7. Nc3 {[%clk 0:03:03]}  Bf5 {[%clk 0:03:00]} 8. Ne1 {[%clk 0:03:02]}  e5 {[%clk 0:02:52]} 9. d5 {[%clk 0:02:58]}  Ne7 {[%clk 0:02:50]} 10. e4 {[%clk 0:02:58]}  Bg4 {[%clk 0:02:48]} 11. f3 {[%clk 0:02:58]}  Bd7 {[%clk 0:02:47]} 12. Nd3 {[%clk 0:02:59]}  Nh5 {[%clk 0:02:46]} 13. c5 {[%clk 0:02:59]}  f5 {[%clk 0:02:46]} 14. Qb3 {[%clk 0:02:55]}  Rb8 {[%clk 0:02:44]} 15. Qa3 {[%clk 0:02:55]}  Nc8 {[%clk 0:02:43]} 16. Bd2 {[%clk 0:02:47]}  Nf6 {[%clk 0:02:35]} 17. Rac1 {[%clk 0:02:45]}  Rf7 {[%clk 0:02:29]} 18. b4 {[%clk 0:02:44]}  Bf8 {[%clk 0:02:29]} 19. b5 {[%clk 0:02:37]}  fxe4 {[%clk 0:02:22]} 20. fxe4 {[%clk 0:02:36]}  b6 {[%clk 0:02:21]} 21. c6 {[%clk 0:02:31]}  Be8 {[%clk 0:02:17]} 22. Bh3 {[%clk 0:02:31]}  Kg7 {[%clk 0:02:13]} 23. Be6 {[%clk 0:02:26]}  Re7 {[%clk 0:02:13]} 24. Rxf6 {[%clk 0:02:15]}  Kxf6 {[%clk 0:02:12]} 25. Rf1+ {[%clk 0:02:12]}  Kg7 {[%clk 0:02:12]} 26. Bg5 {[%clk 0:01:59]}  h6 {[%clk 0:02:10]} 27. Bf6+ {[%clk 0:01:58]}  Kh7 {[%clk 0:02:10]} 28. Nb4 {[%clk 0:01:54]}  Bg7 {[%clk 0:02:05]} 29. Bxg7 {[%clk 0:01:33]}  Kxg7 {[%clk 0:02:04]} 30. Na6 {[%clk 0:01:34]}  g5 {[%clk 0:01:45]} 31. Nxb8 {[%clk 0:01:28]}  Bg6 {[%clk 0:01:29]} 32. Nd7 {[%clk 0:01:24]}  Qe8 {[%clk 0:01:25]} 33. Qb2 {[%clk 0:01:17]}  Rxe6 {[%clk 0:01:22]} 34. dxe6 {[%clk 0:01:18]}  Qxe6 {[%clk 0:01:22]} 35. Qf2 {[%clk 0:01:12]}  Qe7 {[%clk 0:01:17]} 36. Nd5 {[%clk 0:01:12]}  Qd8 {[%clk 0:01:16]} 37. Nxc7 {[%clk 0:01:08]} 1-0


[Site "https://www.chess.com"]

[Event "Titled Tuesday Blitz December 27 Early 2022"]
[White "Janaszak, Dawid"]
[Black "Liyanage, Ranindu Dilshan"]
[WhiteFideId "1119206"]
[BlackFideId "9915834"]
[WhiteElo "2316"]
[BlackElo "2342"]
[Result "0-1"]
[Round "06"]
[TimeControl "180+2"]
[Date "2022.12.27"]
[WhiteClock "0:00:10"]
[BlackClock "0:00:40"]

1. e4 {[%clk 0:03:00]}  e6 {[%clk 0:02:59]} 2. d4 {[%clk 0:02:58]}  d5 {[%clk 0:03:00]} 3. Bd3 {[%clk 0:02:59]}  dxe4 {[%clk 0:02:58]} 4. Bxe4 {[%clk 0:03:00]}  Nf6 {[%clk 0:02:57]} 5. Bf3 {[%clk 0:03:00]}  c5 {[%clk 0:02:55]} 6. Ne2 {[%clk 0:02:58]}  Nc6 {[%clk 0:02:48]} 7. Be3 {[%clk 0:02:57]}  cxd4 {[%clk 0:02:42]} 8. Nxd4 {[%clk 0:02:58]}  Bd7 {[%clk 0:02:41]} 9. Nc3 {[%clk 0:02:54]}  Bb4 {[%clk 0:02:39]} 10. O-O {[%clk 0:02:52]}  O-O {[%clk 0:02:38]} 11. Ne4 {[%clk 0:02:46]}  Nd5 {[%clk 0:02:34]} 12. Bg5 {[%clk 0:02:43]}  Qb6 {[%clk 0:02:31]} 13. Nxc6 {[%clk 0:02:34]}  Bxc6 {[%clk 0:02:29]} 14. c3 {[%clk 0:02:34]}  Be7 {[%clk 0:02:25]} 15. Qb3 {[%clk 0:02:34]}  Qc7 {[%clk 0:02:16]} 16. Rfd1 {[%clk 0:02:30]}  Rfd8 {[%clk 0:02:15]} 17. Bxe7 {[%clk 0:02:29]}  Nxe7 {[%clk 0:02:16]} 18. Ng5 {[%clk 0:02:11]}  h6 {[%clk 0:02:11]} 19. Bxc6 {[%clk 0:02:09]}  Nxc6 {[%clk 0:02:08]} 20. Nf3 {[%clk 0:02:07]}  e5 {[%clk 0:02:04]} 21. Qc4 {[%clk 0:02:04]}  Qe7 {[%clk 0:02:00]} 22. Re1 {[%clk 0:02:01]}  Qf6 {[%clk 0:01:58]} 23. Qe4 {[%clk 0:01:59]}  Re8 {[%clk 0:01:56]} 24. Rad1 {[%clk 0:01:58]}  Rad8 {[%clk 0:01:55]} 25. h3 {[%clk 0:01:58]}  Rxd1 {[%clk 0:01:48]} 26. Rxd1 {[%clk 0:01:59]}  Qe6 {[%clk 0:01:48]} 27. b3 {[%clk 0:01:49]}  Kh8 {[%clk 0:01:43]} 28. c4 {[%clk 0:01:44]}  f5 {[%clk 0:01:42]} 29. Qe3 {[%clk 0:01:39]}  Qf6 {[%clk 0:01:40]} 30. Rd7 {[%clk 0:01:31]}  e4 {[%clk 0:01:36]} 31. Nd4 {[%clk 0:01:30]}  f4 {[%clk 0:01:31]} 32. Qc3 {[%clk 0:01:20]}  e3 {[%clk 0:01:27]} 33. Ne2 {[%clk 0:00:42]}  Qxc3 {[%clk 0:01:19]} 34. Nxc3 {[%clk 0:00:43]}  e2 {[%clk 0:01:19]} 35. Nxe2 {[%clk 0:00:43]}  Rxe2 {[%clk 0:01:19]} 36. Rxb7 {[%clk 0:00:44]}  Rxa2 {[%clk 0:01:19]} 37. b4 {[%clk 0:00:44]}  Nd4 {[%clk 0:01:16]} 38. c5 {[%clk 0:00:39]}  Rb2 {[%clk 0:01:02]} 39. Rxa7 {[%clk 0:00:36]}  Rxb4 {[%clk 0:01:00]} 40. Rf7 {[%clk 0:00:36]}  Rc4 {[%clk 0:00:58]} 41. Kh2 {[%clk 0:00:31]}  g5 {[%clk 0:00:56]} 42. Rc7 {[%clk 0:00:28]}  Ne6 {[%clk 0:00:55]} 43. Rc6 {[%clk 0:00:28]}  Nxc5 {[%clk 0:00:55]} 44. Rxh6+ {[%clk 0:00:28]}  Kg7 {[%clk 0:00:56]} 45. Rc6 {[%clk 0:00:28]}  Rc3 {[%clk 0:00:55]} 46. g3 {[%clk 0:00:22]}  Ne4 {[%clk 0:00:53]} 47. Re6 {[%clk 0:00:16]}  Nxf2 {[%clk 0:00:52]} 48. gxf4 {[%clk 0:00:15]}  gxf4 {[%clk 0:00:52]} 49. Kg2 {[%clk 0:00:16]}  Nxh3 {[%clk 0:00:51]} 50. Ra6 {[%clk 0:00:16]}  Rg3+ {[%clk 0:00:48]} 51. Kh2 {[%clk 0:00:15]}  Ng5 {[%clk 0:00:48]} 52. Ra7+ {[%clk 0:00:15]}  Kg6 {[%clk 0:00:47]} 53. Ra6+ {[%clk 0:00:15]}  Kh5 {[%clk 0:00:47]} 54. Ra1 {[%clk 0:00:15]}  Kg4 {[%clk 0:00:45]} 55. Rf1 {[%clk 0:00:12]}  f3 {[%clk 0:00:40]} 56. Kh1 {[%clk 0:00:12]}  Ne4 {[%clk 0:00:40]} 57. Kh2 {[%clk 0:00:10]}  Rg2+ {[%clk 0:00:40]} 0-1


[Site "https://www.chess.com"]

[Event "Titled Tuesday Blitz December 27 Early 2022"]
[White "Jenkins, Drake"]
[Black "Estrada Nieto, Julian"]
[WhiteFideId "2022397"]
[BlackFideId "5101018"]
[WhiteElo "2130"]
[BlackElo "2215"]
[Result "0-1"]
[Round "06"]
[TimeControl "180+2"]
[Date "2022.12.27"]
[WhiteClock "0:00:01"]
[BlackClock "0:00:03"]

1. Nf3 {[%clk 0:03:00]}  d5 {[%clk 0:02:59]} 2. c4 {[%clk 0:03:00]}  d4 {[%clk 0:02:59]} 3. b4 {[%clk 0:02:59]}  c5 {[%clk 0:02:56]} 4. b5 {[%clk 0:02:58]}  g6 {[%clk 0:02:56]} 5. d3 {[%clk 0:02:58]}  Bg7 {[%clk 0:02:56]} 6. g3 {[%clk 0:02:59]}  e5 {[%clk 0:02:51]} 7. Bg2 {[%clk 0:02:59]}  Ne7 {[%clk 0:02:51]} 8. O-O {[%clk 0:02:59]}  O-O {[%clk 0:02:51]} 9. a4 {[%clk 0:02:58]}  a5 {[%clk 0:02:47]} 10. bxa6 {[%clk 0:02:58]}  Nxa6 {[%clk 0:02:44]} 11. Na3 {[%clk 0:02:57]}  Nb4 {[%clk 0:02:41]} 12. Nb5 {[%clk 0:02:57]}  h6 {[%clk 0:02:36]} 13. Bd2 {[%clk 0:02:45]}  Nec6 {[%clk 0:02:33]} 14. Ne1 {[%clk 0:02:38]}  Be6 {[%clk 0:02:30]} 15. Nc2 {[%clk 0:02:37]}  Nxc2 {[%clk 0:02:24]} 16. Qxc2 {[%clk 0:02:38]}  Qd7 {[%clk 0:02:24]} 17. Rfb1 {[%clk 0:02:07]}  Ra6 {[%clk 0:02:12]} 18. f4 {[%clk 0:01:47]}  Bg4 {[%clk 0:01:57]} 19. fxe5 {[%clk 0:01:38]}  Nxe5 {[%clk 0:01:42]} 20. Bf4 {[%clk 0:01:37]}  g5 {[%clk 0:01:36]} 21. Bxe5 {[%clk 0:01:36]}  Bxe5 {[%clk 0:01:37]} 22. Na3 {[%clk 0:01:16]}  Qxa4 {[%clk 0:01:22]} 23. Qd2 {[%clk 0:00:51]}  Qa5 {[%clk 0:01:14]} 24. Qc2 {[%clk 0:00:34]}  Bc8 {[%clk 0:01:08]} 25. Bxb7 {[%clk 0:00:29]}  Bxb7 {[%clk 0:01:05]} 26. Rxb7 {[%clk 0:00:29]}  Rfa8 {[%clk 0:01:05]} 27. Rbb1 {[%clk 0:00:17]}  Qc3 {[%clk 0:01:00]} 28. Qxc3 {[%clk 0:00:13]}  dxc3 {[%clk 0:01:00]} 29. Nc2 {[%clk 0:00:14]}  Rxa1 {[%clk 0:00:52]} 30. Rxa1 {[%clk 0:00:15]}  Rb8 {[%clk 0:00:51]} 31. Kf2 {[%clk 0:00:12]}  Rb2 {[%clk 0:00:47]} 32. Rc1 {[%clk 0:00:12]}  f5 {[%clk 0:00:44]} 33. e3 {[%clk 0:00:12]}  f4 {[%clk 0:00:40]} 34. gxf4 {[%clk 0:00:11]}  gxf4 {[%clk 0:00:40]} 35. h3 {[%clk 0:00:10]}  Kf7 {[%clk 0:00:37]} 36. Ke2 {[%clk 0:00:08]}  Ke6 {[%clk 0:00:34]} 37. d4 {[%clk 0:00:08]}  Bd6 {[%clk 0:00:19]} 38. exf4 {[%clk 0:00:05]}  Kf5 {[%clk 0:00:17]} 39. Kd3 {[%clk 0:00:05]}  Bxf4 {[%clk 0:00:13]} 40. Rf1 {[%clk 0:00:04]}  Ra2 {[%clk 0:00:07]} 41. dxc5 {[%clk 0:00:02]}  Ra8 {[%clk 0:00:06]} 42. Kxc3 {[%clk 0:00:02]}  Rc8 {[%clk 0:00:06]} 43. c6 {[%clk 0:00:03]}  Ke4 {[%clk 0:00:05]} 44. Re1+ {[%clk 0:00:02]}  Kf3 {[%clk 0:00:04]} 45. Nb4 {[%clk 0:00:01]}  Bg3 {[%clk 0:00:02]} 46. Re6 {[%clk 0:00:01]}  Bf2 {[%clk 0:00:03]} 0-1


[Site "https://www.chess.com"]

[Event "Titled Tuesday Blitz December 27 Early 2022"]
[White "Jiganchine, Roman"]
[Black "Barbashin, Igor"]
[WhiteFideId "2603667"]
[BlackFideId "4155718"]
[WhiteElo "2205"]
[BlackElo "2169"]
[Result "0-1"]
[Round "06"]
[TimeControl "180+2"]
[Date "2022.12.27"]
[WhiteClock "0:00:08"]
[BlackClock "0:00:21"]

1. e4 {[%clk 0:03:00]}  d5 {[%clk 0:02:59]} 2. exd5 {[%clk 0:02:59]}  Nf6 {[%clk 0:02:58]} 3. c4 {[%clk 0:02:58]}  c6 {[%clk 0:02:57]} 4. d4 {[%clk 0:02:57]}  cxd5 {[%clk 0:02:57]} 5. Nc3 {[%clk 0:02:58]}  g6 {[%clk 0:02:56]} 6. Qb3 {[%clk 0:02:53]}  Bg7 {[%clk 0:02:54]} 7. cxd5 {[%clk 0:02:50]}  O-O {[%clk 0:02:53]} 8. Be2 {[%clk 0:02:50]}  Nbd7 {[%clk 0:02:53]} 9. Bf3 {[%clk 0:02:49]}  Nb6 {[%clk 0:02:52]} 10. Nge2 {[%clk 0:02:49]}  Bg4 {[%clk 0:02:50]} 11. Bxg4 {[%clk 0:02:49]}  Nxg4 {[%clk 0:02:50]} 12. O-O {[%clk 0:02:48]}  Qd6 {[%clk 0:02:28]} 13. Bf4 {[%clk 0:02:41]}  Qd7 {[%clk 0:02:27]} 14. a4 {[%clk 0:02:38]}  Nf6 {[%clk 0:02:26]} 15. d6 {[%clk 0:02:35]}  exd6 {[%clk 0:02:25]} 16. a5 {[%clk 0:02:35]}  Nc8 {[%clk 0:02:23]} 17. Qb4 {[%clk 0:02:21]}  Nh5 {[%clk 0:02:15]} 18. Be3 {[%clk 0:02:09]}  Ne7 {[%clk 0:02:13]} 19. a6 {[%clk 0:01:55]}  Rfb8 {[%clk 0:02:01]} 20. Rfb1 {[%clk 0:01:03]}  bxa6 {[%clk 0:01:59]} 21. Qa3 {[%clk 0:01:01]}  Nf5 {[%clk 0:01:27]} 22. Qxa6 {[%clk 0:00:53]}  Nxe3 {[%clk 0:01:26]} 23. fxe3 {[%clk 0:00:53]}  Re8 {[%clk 0:01:26]} 24. Nd5 {[%clk 0:00:38]}  Rac8 {[%clk 0:00:51]} 25. Nec3 {[%clk 0:00:34]}  Bh6 {[%clk 0:00:43]} 26. Qxa7 {[%clk 0:00:32]}  Qe6 {[%clk 0:00:37]} 27. Re1 {[%clk 0:00:22]}  Rxc3 {[%clk 0:00:26]} 28. Nxc3 {[%clk 0:00:19]}  Bxe3+ {[%clk 0:00:25]} 29. Kh1 {[%clk 0:00:19]}  Qg4 {[%clk 0:00:22]} 30. Nd5 {[%clk 0:00:12]}  Ng3+ {[%clk 0:00:21]} 31. hxg3 {[%clk 0:00:08]}  Qh5# {[%clk 0:00:21]} 0-1


[Site "https://www.chess.com"]